fUST/lending_fUST_20251214
["ID","MTS","AMOUNT","RATE_DAILY","PERIOD"]
[398465180,1765684243735,-865.14,0.00021917,2]
[398465181,1765684243744,-500.0,0.00021917,2]
[398465182,1765684243754,-500.0,0.00021917,2]
[398465183,1765684243763,-500.0,0.00021917,2]
[398465184,1765684243773,-503.17395813,0.00021917,2]
[398465185,1765684243782,-865.95,0.00021917,2]
[398465186,1765684243792,-1208.21,0.00021917,2]
[398465187,1765684243801,-500.0,0.00021917,2]
[398465188,1765684243810,-500.0,0.00021917,2]
[398465189,1765684243819,-833.85,0.00021917,2]
[398465190,1765684243828,-708.22,0.00021917,2]
[398465191,1765684243838,-500.0,0.00021917,2]
[398465192,1765684243847,-500.0,0.00021917,2]
[398465193,1765684243857,-1277.72,0.00021917,2]
[398465194,1765684243866,-500.0,0.00021917,2]
[398465195,1765684243875,-1195.56,0.00021917,2]
[398465196,1765684243885,-500.0,0.00021917,2]
[398465197,1765684243895,-500.0,0.00021917,2]
[398465198,1765684243904,-500.0,0.00021917,2]
[398465199,1765684243914,-928.48,0.00021917,2]
[398465200,1765684243923,-504.47428269,0.00021917,2]
[398465201,1765684243933,-1020.58,0.00021917,2]
[398465202,1765684243945,-500.0,0.00021917,2]
[398465203,1765684243956,-528.13,0.00021917,2]
[398465204,1765684244023,-649.0,0.00021917,2]
[398465205,1765684244033,-500.0,0.00021917,2]
[398465206,1765684244042,-500.0,0.00021917,2]
[398465207,1765684244052,-502.07225684,0.00021917,2]
[398465208,1765684244062,-1373.08,0.00021917,2]
[398465209,1765684244071,-776.98,0.00021917,2]
[398465210,1765684244080,-654.43,0.00021917,2]
[398465211,1765684244091,-500.0,0.00021917,2]
[398465212,1765684244101,-949.34,0.00021917,2]
[398465213,1765684244110,-500.0,0.00021917,2]
[398465214,1765684244120,-500.0,0.00021917,2]
[398465215,1765684244130,-930.57,0.00021917,2]
[398465216,1765684244141,-500.0,0.00021917,2]
[398465217,1765684244150,-500.0,0.00021917,2]
[398465218,1765684244160,-500.0,0.00021917,2]
[398465219,1765684244170,-500.0,0.00021917,2]
[398465220,1765684244180,-500.0,0.00021917,2]
[398465221,1765684244190,-1154.2,0.00021917,2]
[398465222,1765684244199,-618.73,0.00021917,2]
[398465223,1765684244210,-500.0,0.00021917,2]
[398465224,1765684244219,-1655.94,0.00021917,2]
[398465225,1765684244229,-591.3,0.00021917,2]
[398465226,1765684244239,-500.0,0.00021917,2]
[398465227,1765684244249,-500.0,0.00021917,2]
[398465228,1765684244260,-519.82,0.00021917,2]
[398465229,1765684244269,-520.63706917,0.00021917,2]
[398465230,1765684244278,-2350.65,0.00021917,2]
[398465231,1765684244288,-570.92,0.00021917,2]
[398465232,1765684244297,-500.0,0.00021917,2]
[398465233,1765684244307,-500.0,0.00021917,2]
[398465234,1765684244316,-500.0,0.00021917,2]
[398465235,1765684244325,-500.0,0.00021917,2]
[398465236,1765684244334,-1368.45,0.00021917,2]
[398465237,1765684244344,-500.0,0.00021917,2]
[398465238,1765684244353,-500.0,0.00021917,2]
[398465239,1765684244363,-502.60196686,0.00021917,2]
[398465240,1765684244373,-507.84,0.00021917,2]
[398465241,1765684244383,-500.0,0.00021917,2]
[398465242,1765684244394,-1028.41,0.00021917,2]
[398465243,1765684244405,-889.3,0.00021917,2]
[398465244,1765684244414,-757.62,0.00021917,2]
[398465245,1765684244425,-769.24,0.00021917,2]
[398465246,1765684244436,-500.0,0.00021917,2]
[398465247,1765684244446,-445.84519756,0.00021917,2]
[398465248,1765684244455,-500.0,0.00021917,2]
[398465249,1765684244465,-866.66,0.00021917,2]
[398465250,1765684244475,-500.0,0.00021917,2]
[398465251,1765684244485,-500.0,0.00021917,2]
[398465252,1765684244494,-193.56153833,0.00021917,2]
[398465253,1765684244506,-1715.21,0.00021917,2]
[398465254,1765684244516,-500.0,0.00021917,2]
[398465255,1765684244525,-500.0,0.00021917,2]
[398465256,1765684244535,-500.0,0.00021917,2]
[398465257,1765684244545,-9800.75,0.00021917,2]
[398465258,1765684244555,-500.0,0.00021917,2]
[398465259,1765684244565,-758.75,0.00021917,2]
[398465260,1765684244574,-500.0,0.00021917,2]
[398465261,1765684244586,-500.0,0.00021917,2]
[398465262,1765684244595,-692.69,0.00021917,2]
[398465263,1765684244604,-500.0,0.00021917,2]
[398465264,1765684244613,-500.0,0.00021917,2]
[398465265,1765684244623,-892.14,0.00021917,2]
[398465266,1765684244632,-500.0,0.00021917,2]
[398465267,1765684244642,-500.0,0.00021917,2]
[398465268,1765684244651,-500.0,0.00021917,2]
[398465269,1765684244660,-501.7684592,0.00021917,2]
[398465270,1765684244671,-500.0,0.00021917,2]
[398465271,1765684244682,-500.0,0.00021917,2]
[398465272,1765684244692,-994.04,0.00021917,2]
[398465273,1765684244701,-500.0,0.00021917,2]
[398465274,1765684244710,-3140.13,0.00021917,2]
[398465275,1765684244719,-502.4793081,0.00021917,2]
[398465276,1765684244728,-500.0,0.00021917,2]
[398465277,1765684244738,-500.0,0.00021917,2]
[398465278,1765684244748,-1543.67,0.00021917,2]
[398465279,1765684244757,-179.66729622,0.00021917,2]
[398465280,1765684244767,-500.0,0.00021917,2]
[398465281,1765684244777,-543.49,0.00021917,2]
[398465282,1765684244786,-500.0,0.00021917,2]
[398465283,1765684244796,-500.0,0.00021917,2]
[398465284,1765684244806,-830.94,0.00021917,2]
[398465285,1765684244816,-710.01,0.00021917,2]
[398465286,1765684244825,-500.0,0.00021917,2]
[398465287,1765684244834,-500.0,0.00021917,2]
[398465288,1765684244843,-500.0,0.00021917,2]
[398465289,1765684244853,-155.68435672,0.00021917,2]
[398465290,1765684244863,-500.0,0.00021917,2]
[398465291,1765684244873,-500.0,0.00021917,2]
[398465292,1765684244882,-680.67,0.00021917,2]
[398465293,1765684244892,-587.41,0.00021917,2]
[398465294,1765684244901,-501.21770166,0.00021917,2]
[398465295,1765684244910,-12500.58,0.00021917,2]
[398465296,1765684244920,-1772.43,0.00021917,2]
[398465297,1765684244929,-501.22417795,0.00021917,2]
[398465298,1765684244938,-579.47,0.00021917,2]
[398465299,1765684244947,-500.0,0.00021917,2]
[398465300,1765684244957,-437.32635176,0.00021917,2]
[398465301,1765684244966,-612.67,0.00021917,2]
[398465302,1765684244976,-501.72334458,0.00021917,2]
[398465303,1765684244987,-986.85,0.00021917,2]
[398465304,1765684244996,-1685.51,0.00021917,2]
[398465305,1765684245006,-1390.21,0.00021917,2]
[398465306,1765684245015,-500.0,0.00021917,2]
[398465307,1765684245023,-800.15,0.00021917,2]
[398465308,1765684245032,-500.0,0.00021917,2]
[398465309,1765684245041,-501.31977282,0.00021917,2]
[398465310,1765684245050,-832.86,0.00021917,2]
[398465311,1765684245058,-500.0,0.00021917,2]
[398465312,1765684245067,-1505.56,0.00021917,2]
[398465313,1765684245076,-2094.49,0.00021917,2]
[398465314,1765684245085,-500.0,0.00021917,2]
[398465315,1765684245094,-962.81,0.00021917,2]
[398465316,1765684245103,-1921.66,0.00021917,2]
[398465317,1765684245112,-500.0,0.00021917,2]
[398465318,1765684245121,-733.89,0.00021917,2]
[398465319,1765684245130,-500.0,0.00021917,2]
[398465320,1765684245139,-500.0,0.00021917,2]
[398465321,1765684245147,-500.0,0.00021917,2]
[398465322,1765684245156,-575.74,0.00021917,2]
[398465323,1765684245165,-500.0,0.00021917,2]
[398465324,1765684245174,-1471.99,0.00021917,2]
[398465325,1765684245183,-1978.55,0.00021917,2]
[398465326,1765684245193,-1985.86,0.00021917,2]
[398465327,1765684245202,-500.0,0.00021917,2]
[398465328,1765684245211,-1319.86,0.00021917,2]
[398465329,1765684245220,-522.06,0.00021917,2]
[398465330,1765684245230,-738.64,0.00021917,2]
[398465331,1765684245239,-984.37,0.00021917,2]
[398465332,1765684245250,-819.01,0.00021917,2]
[398465333,1765684245261,-500.0,0.00021917,2]
[398465334,1765684245270,-3722.4,0.00021917,2]
[398465335,1765684245279,-500.0,0.00021917,2]
[398465336,1765684245288,-500.0,0.00021917,2]
[398465337,1765684245299,-500.0,0.00021917,2]
[398465338,1765684245310,-500.0,0.00021917,2]
[398465339,1765684245320,-500.0,0.00021917,2]
[398465340,1765684245329,-500.0,0.00021917,2]
[398465341,1765684245338,-1398.58,0.00021917,2]
[398465342,1765684245348,-1470.77,0.00021917,2]
[398465343,1765684245357,-500.0,0.00021917,2]
[398465344,1765684245366,-649.59413326,0.00021917,2]
[398465345,1765684245375,-500.0,0.00021917,2]
[398465346,1765684245384,-1412.01,0.00021917,2]
[398465347,1765684245393,-648.65,0.00021917,2]
[398465348,1765684245403,-2545.55,0.00021917,2]
[398465349,1765684245412,-500.0,0.00021917,2]
[398465350,1765684245421,-500.0,0.00021917,2]
[398465351,1765684245430,-631.63,0.00021917,2]
[398465352,1765684245440,-500.0,0.00021917,2]
[398465353,1765684245450,-1533.85,0.00021917,2]
[398465354,1765684245461,-3414.98,0.00021917,2]
[398465355,1765684245470,-500.0,0.00021917,2]
[398465356,1765684245479,-1002.58,0.00021917,2]
[398465357,1765684245490,-500.0,0.00021917,2]
[398465358,1765684245502,-500.0,0.00021917,2]
[398465359,1765684245515,-500.0,0.00021917,2]
[398465360,1765684245524,-2336.15,0.00021917,2]
[398465361,1765684245535,-500.0,0.00021917,2]
[398465362,1765684245546,-502.06056247,0.00021917,2]
[398465363,1765684245556,-443.71630219,0.00021917,2]
[398465364,1765684245566,-500.0,0.00021917,2]
[398465365,1765684245577,-661.23,0.00021917,2]
[398465366,1765684245587,-1072.09,0.00021917,2]
[398465367,1765684245597,-500.0,0.00021917,2]
[398465368,1765684245606,-500.0,0.00021917,2]
[398465369,1765684245615,-500.0,0.00021917,2]
[398465370,1765684245624,-500.0,0.00021917,2]
[398465371,1765684245633,-500.0,0.00021917,2]
[398465372,1765684245642,-500.0,0.00021917,2]
[398465373,1765684245651,-1278.12,0.00021917,2]
[398465374,1765684245660,-500.0,0.00021917,2]
[398465375,1765684245669,-1674.34,0.00021917,2]
[398465376,1765684245679,-500.0,0.00021917,2]
[398465377,1765684245688,-600.55431069,0.00021917,2]
[398465378,1765684245697,-500.0,0.00021917,2]
[398465379,1765684245706,-2680.25,0.00021917,2]
[398465380,1765684245715,-522.7,0.00021917,2]
[398465381,1765684245725,-2926.03,0.00021917,2]
[398465382,1765684245734,-500.0,0.00021917,2]
[398465383,1765684245744,-501.91161985,0.00021917,2]
[398465384,1765684245754,-2074.51,0.00021917,2]
[398465385,1765684245763,-900.86,0.00021917,2]
[398465386,1765684245772,-500.0,0.00021917,2]
[398465387,1765684245781,-663.77,0.00021917,2]
[398465388,1765684245793,-500.0,0.00021917,2]
[398465389,1765684245802,-500.0,0.00021917,2]
[398465390,1765684245813,-504.2,0.00021917,2]
[398465391,1765684245822,-603.29782566,0.00021917,2]
[398465392,1765684245852,-88.23217434,0.00021917,2]
[398465393,1765684245861,-1717.97,0.00021917,2]
[398465394,1765684245871,-500.0,0.00021917,2]
[398465395,1765684245882,-1726.92,0.00021917,2]
[398465396,1765684245891,-802.03,0.00021917,2]
[398465397,1765684245902,-500.0,0.00021917,2]
[398465398,1765684245911,-1669.65,0.00021917,2]
[398465399,1765684245920,-1139.46,0.00021917,2]
[398465400,1765684245930,-101.9213159,0.00021917,2]
[398465401,1765684245942,-568.8086841,0.00021917,2]
[398465402,1765684245951,-500.0,0.00021917,2]
[398465403,1765684245961,-540.8,0.00021917,2]
[398465404,1765684245970,-500.0,0.00021917,2]
[398465405,1765684245979,-500.0,0.00021917,2]
[398465406,1765684245992,-500.0,0.00021917,2]
[398465407,1765684246001,-410.4313159,0.00021917,2]
[398465409,1765684246013,-297.4886841,0.00021917,2]
[398465410,1765684246022,-500.0,0.00021917,2]
[398465411,1765684246031,-259.94221402,0.00021917,2]
[398465412,1765684246043,-240.05778598,0.00021917,2]
[398465413,1765684246052,-2721.82,0.00021917,2]
[398465414,1765684246060,-7.91051298,0.00021917,2]
[398465415,1765684246072,-320.0,0.00021917,2]
[398465417,1765684246400,-2878.6372696,0.00015541,2]
[398465418,1765684246410,-319.75948702,0.00021917,2]
[398465419,1765684246419,-563.32,0.00021917,2]
[398465420,1765684246427,-102.52624171,0.00021917,2]
[398465421,1765684246789,-302.2067323,0.00018904,2]
[398465422,1765684246798,-287.92490396,0.00021917,2]
[398465423,1765684247402,-2878.6372696,0.00017683,2]
[398465424,1765684247412,-1405.24669777,0.00021907,10]
[398465425,1765684323368,10000.0,0.000134,2]
[398465427,1765684443689,1263.0,0.000134,2]
[398465429,1765684481612,5243.77,0.00013418,2]
[398465438,1765685192124,-244.73109,0.00013699,2]
[398465439,1765685192148,-68.98937547,0.00020168,2]
[398465440,1765685244090,-195.38848957,0.00020178,2]
[398465441,1765685244111,-244.73109,0.00020187,2]
[398465442,1765685244131,-653.14826306,0.00020242,2]
[398465464,1765685432437,-633.90196367,0.00020242,2]
[398465465,1765685432447,-726.0,0.00020242,2]
[398465467,1765685432460,-161.197641,0.00020401,2]
[398465469,1765685432469,-848.90039533,0.00020547,7]
[398465514,1765685438522,-351.09960467,0.00020547,7]
[398465515,1765685438532,-198.08824625,0.00020852,2]
[398465516,1765685438542,-1200.0,0.00021046,2]
[398465517,1765685438552,-2940.92223779,0.00021047,2]
[398465518,1765685438564,-2324.07776221,0.00021047,2]
[398465519,1765685438573,-300.0,0.00021189,2]
[398465521,1765685438583,-1653.2889502,0.0002119,2]
[398465523,1765685438592,-5265.0,0.00021277,2]
[398465525,1765685438602,-302.2067323,0.0002137,2]
[398465526,1765685438877,-302.2067323,0.0002137,2]
[398465527,1765685438888,-302.2067323,0.0002137,2]
[398465528,1765685438897,-302.2067323,0.0002137,2]
[398465529,1765685438906,-302.2067323,0.0002137,2]
[398465530,1765685438915,-302.2067323,0.0002137,2]
[398465531,1765685438925,-302.2067323,0.0002137,2]
[398465532,1765685438935,-302.2067323,0.0002137,2]
[398465533,1765685438944,-302.2067323,0.0002137,2]
[398465534,1765685438954,-117.23768292,0.0002137,2]
[398465535,1765685439273,-48.21750908,0.0002137,2]
[398465536,1765685439283,-696.98439363,0.00021371,3]
[398465880,1765685443593,-1006.48258911,0.00021371,3]
[398465883,1765685443605,-182.78199464,0.00021479,2]
[398465885,1765685443614,-1706.39279161,0.00021489,2]
[398465886,1765685443624,-2269.16939419,0.00021561,2]
[398465920,1765685446492,-1373.93836118,0.00021561,2]
[398465921,1765685531234,6266.0,0.000134,2]
[398465922,1765685651632,2471.0,0.000134,2]
[398465923,1765685763693,1263.0,0.000134,2]
[398465928,1765686440126,-727.0,0.00020276,2]
[398465929,1765686440147,-199.49616634,0.00020344,2]
[398465930,1765686440166,-164.56989723,0.00020547,7]
[398465931,1765686449070,-384.33100379,0.00020547,7]
[398465983,1765686631730,-194.22422904,0.0002,2]
[398465985,1765686631740,-2129.5281065,0.00020348,2]
[398465987,1765686631749,-199.57396855,0.00020447,2]
[398465989,1765686631757,-551.09909898,0.00020547,7]
[398465991,1765686631766,-999.0,0.00020614,2]
[398465993,1765686631776,-368.108588,0.00020719,2]
[398465995,1765686631785,-1860.72500426,0.00020885,2]
[398465997,1765686631794,-1860.72500427,0.00021127,2]
[398465999,1765686631803,-300.0,0.00021189,2]
[398466001,1765686631812,-500.0,0.0002119,2]
[398466003,1765686631821,-500.0,0.0002119,2]
[398466005,1765686631831,-500.0,0.0002119,2]
[398466007,1765686631840,-500.0,0.0002119,2]
[398466009,1765686631849,-500.0,0.0002119,10]
[398466011,1765686631860,-500.0,0.0002119,2]
[398466013,1765686631869,-500.0,0.0002119,2]
[398466015,1765686631878,-544.69149211,0.0002119,10]
[398466017,1765686631888,-198.08824625,0.00021191,2]
[398466019,1765686631897,-155.96851862,0.000214,5]
[398466021,1765686631907,-166.32803068,0.000214,5]
[398466023,1765686631915,-1671.23292541,0.00021438,3]
[398466109,1765686637593,-535.93722545,0.00021126,2]
[398466110,1765686637605,-230.42389802,0.00021126,2]
[398466111,1765686637614,-285.19092936,0.00021438,3]
[398466112,1765686637624,-425.0,0.00021457,10]
[398466113,1765686637633,-182.78199465,0.00021479,2]
[398466114,1765686637644,-1631.73038627,0.00021516,2]
[398466115,1765686637658,-167.41790723,0.00021516,2]
[398466116,1765686637668,-1621.89224463,0.00021561,2]
[398466117,1765686637679,-160.0,0.00021596,5]
[398466118,1765686637691,-2745.53,0.00021607,10]
[398466119,1765686637703,-1504.14009274,0.00021607,10]
[398466120,1765686637716,-783.79990726,0.00021607,10]
[398466121,1765686637725,-191.98115831,0.00021616,2]
[398466122,1765686637734,-500.0,0.00021616,2]
[398466123,1765686637745,-500.0,0.00021616,2]
[398466124,1765686637756,-500.0,0.00021616,2]
[398466125,1765686637767,-500.0,0.00021616,2]
[398466126,1765686637778,-500.0,0.00021616,2]
[398466127,1765686637787,-236.62152623,0.00021616,2]
[398466128,1765686637797,-500.0,0.00021616,2]
[398466129,1765686637811,-500.0,0.00021616,2]
[398466130,1765686637820,-500.0,0.00021616,2]
[398466131,1765686637830,-500.0,0.00021616,2]
[398466132,1765686637839,-500.0,0.00021616,2]
[398466133,1765686637848,-500.0,0.00021616,2]
[398466134,1765686637859,-500.0,0.00021616,2]
[398466135,1765686637868,-500.0,0.00021616,2]
[398466136,1765686637878,-500.0,0.00021616,2]
[398466137,1765686637887,-550.0,0.00021616,2]
[398466138,1765686637896,-500.0,0.00021616,2]
[398466139,1765686637905,-642.45517336,0.00021617,2]
[398466140,1765686637917,-22562.70210381,0.00021617,2]
[398466141,1765686637927,-21015.40392329,0.00021617,2]
[398466142,1765686637938,-2610.78974748,0.00021617,2]
[398466144,1765686639809,-1086.86268639,0.00021617,2]
[398466145,1765686639862,-614.8492,0.00021617,2]
[398466155,1765686642701,-2000.0,0.00021617,2]
[398466156,1765686642712,-768.90923381,0.00021617,2]
[398466170,1765686645816,-391.50697925,0.00021617,2]
[398466171,1765686662936,153.93,0.00012,2]
[398466172,1765686663167,153.93,0.000122,2]
[398466173,1765686663438,153.93,0.000124,2]
[398466174,1765686663803,153.93,0.000126,2]
[398466175,1765686664121,153.93,0.000128,2]
[398466176,1765686664445,153.93,0.00013,2]
[398466177,1765686664766,153.93,0.000132,2]
[398466178,1765686665044,153.93,0.000134,2]
[398466179,1765686724171,153.93,0.00012,2]
[398466180,1765686724638,153.93,0.00013,2]
[398466181,1765686731195,1536.0,0.000134,2]
[398466182,1765686783537,153.93,0.00012,2]
[398466183,1765686851151,2331.0,0.000134,2]
[398466184,1765686971077,2399.0,0.000134,2]
[398466185,1765687088582,5144.33790384,0.00014,30]
[398466186,1765687090781,2040.78,0.000134,2]
[398466187,1765687090809,430.22,0.000134,2]
[398466188,1765687204391,1263.0,0.000134,2]
[398466189,1765687239640,716.0,0.000134,2]
[398466194,1765687569144,-2000.0,0.00017,2]
[398466195,1765687569175,-213.56633585,0.0001725,2]
[398466196,1765687646108,-236.77682547,0.000175,2]
[398466233,1765687831759,-233.854154,0.00013699,2]
[398466235,1765687831769,-1763.22317453,0.000175,2]
[398466237,1765687831779,-213.57076031,0.0001775,2]
[398466239,1765687831789,-193.58355277,0.00019512,2]
[398466241,1765687831798,-252.01349717,0.0001975,2]
[398466243,1765687831808,-593.43048795,0.0001978,2]
[398466245,1765687831817,-1068.17487832,0.0001978,2]
[398466247,1765687831827,-1898.97756146,0.0001978,2]
[398466249,1765687831837,-2964.18528733,0.0001978,2]
[398466251,1765687831848,-233.854154,0.00020187,2]
[398466253,1765687831857,-1000.0,0.00020547,7]
[398466255,1765687831867,-300.0,0.00020679,2]
[398466257,1765687831877,-300.0,0.00020679,2]
[398466259,1765687831887,-408.0,0.00020679,2]
[398466262,1765687831900,-710.2377433,0.0002068,2]
[398466264,1765687831913,-6681.44631026,0.0002068,2]
[398466266,1765687831925,-255.90621393,0.0002068,2]
[398466382,1765687837784,-3484.07439681,0.0002068,2]
[398466383,1765687837795,-4404.5433117,0.0002068,2]
[398466384,1765687837838,-4114.16,0.0002068,2]
[398466385,1765687837850,-1059.8697673,0.0002068,2]
[398466386,1765687837860,-1574.25475683,0.0002101,2]
[398466387,1765687837869,-2470.95094176,0.0002131,2]
[398466388,1765687837879,-191.05858825,0.00021443,2]
[398466389,1765687837889,-182.78199465,0.00021479,2]
[398466390,1765687837902,-1685.94,0.00021507,10]
[398466391,1765687837912,-500.0,0.00021514,2]
[398466392,1765687837922,-192.38085625,0.00021514,2]
[398466393,1765687837931,-500.0,0.00021514,2]
[398466394,1765687837940,-500.0,0.00021514,2]
[398466395,1765687837950,-500.0,0.00021514,2]
[398466396,1765687837960,-500.0,0.00021514,2]
[398466397,1765687837968,-500.0,0.00021514,2]
[398466398,1765687837978,-500.0,0.00021514,2]
[398466399,1765687837987,-426.4623049,0.00021514,2]
[398466400,1765687837996,-500.0,0.00021514,2]
[398466401,1765687838005,-500.0,0.00021514,2]
[398466402,1765687838014,-500.0,0.00021514,2]
[398466403,1765687838023,-500.0,0.00021514,2]
[398466404,1765687838033,-450.0,0.00021514,2]
[398466405,1765687838042,-500.0,0.00021517,2]
[398466406,1765687838051,-9088.94332801,0.00021517,2]
[398466407,1765687838063,-14792.26899724,0.00021517,2]
[398466408,1765687839962,-1625.63,0.00021507,10]
[398466409,1765687839971,-23790.55009161,0.00021517,2]
[398466410,1765687839982,-1595.8,0.00021517,2]
[398466411,1765687840017,-6855.87471478,0.00021517,2]
[398466412,1765687840028,-1525.57541363,0.00021517,2]
[398466413,1765687840038,-594.4003059,0.00021517,2]
[398466414,1765687840048,-260.52411114,0.00021517,2]
[398466415,1765687840058,-1242.57155899,0.00021517,2]
[398466430,1765687842822,-10342.34652909,0.00021517,2]
[398466431,1765687842877,-8544.43203038,0.00021517,2]
[398466432,1765687842892,-5062.5400021,0.00021517,2]
[398466438,1765687862336,153.93,0.00012,2]
[398466439,1765687862668,153.93,0.000125,2]
[398466440,1765687862943,153.93,0.00013,2]
[398466441,1765687924056,153.93,0.00012,2]
[398466442,1765687984141,153.93,0.00012,2]
[398466443,1765688171384,1536.0,0.000134,2]
[398466444,1765688291033,2331.0,0.000134,2]
[398466445,1765688417137,2399.0,0.000134,2]
[398466446,1765688525200,500.0,0.000134,2]
[398466447,1765688531180,2471.0,0.000134,2]
[398466449,1765688643124,763.01,0.000134,2]
[398466450,1765688643147,499.99,0.000134,2]
[398466453,1765688800142,-313.72046547,0.00020011,2]
[398466454,1765688850100,-685.27953453,0.00020011,2]
[398466455,1765688850119,-226.74638342,0.00020112,2]
[398466456,1765688850138,-181.02174678,0.00020213,2]
[398466517,1765689031883,-684.0134456,0.00019508,2]
[398466519,1765689031893,-1231.22420208,0.00019508,2]
[398466521,1765689031903,-2188.84302592,0.00019508,2]
[398466523,1765689031914,-3416.64716078,0.00019508,2]
[398466525,1765689031926,-1000.0,0.00020213,2]
[398466527,1765689031935,-22987.76109001,0.00020213,30]
[398466529,1765689031944,-725.0,0.00020213,2]
[398466531,1765689031954,-161.197641,0.00020213,2]
[398466533,1765689031963,-500.0,0.00020213,2]
[398466535,1765689031972,-321.49765174,0.00020213,2]
[398466537,1765689031982,-257.0,0.00020534,2]
[398466539,1765689031991,-300.0,0.00020534,2]
[398466563,1765689032000,-900.0,0.00020547,7]
[398466565,1765689032225,-198.08824625,0.0002058,2]
[398466567,1765689032235,-555.0,0.0002073,2]
[398466570,1765689032247,-8635.00390435,0.0002073,2]
[398466643,1765689038017,-4634.27124687,0.0002073,2]
[398466828,1765689046035,-4209.49955301,0.0002073,2]
[398466832,1765689062440,153.93,0.00012,2]
[398466838,1765689123831,153.93,0.00012,2]
[398466855,1765690035132,-723.0,0.00020108,2]
[398466856,1765690035153,-233.74717808,0.00020108,2]
[398466857,1765690035173,-134.5170456,0.00020108,2]
[398466860,1765690054077,-77.8202314,0.00020108,2]
[398466861,1765690054099,-306.51373371,0.00020282,2]
[398466903,1765690232117,-300.0,0.00014999,2]
[398466905,1765690232127,-76.90426016,0.00014999,2]
[398466910,1765690232177,-559.09573984,0.00014999,2]
[398466912,1765690232187,-82.62143761,0.00015,5]
[398467239,1765690246226,-604.017359,0.00015,5]
[398467247,1765690262061,155.76,0.00012,2]
[398467285,1765690437697,3287.42,0.00019,120]
[398467341,1765691251203,205.54845439,9.277e-05,2]
[398467342,1765691255924,150.0,6.71e-05,2]
[398467343,1765691256358,150.0,7.029e-05,2]
[398467344,1765691256752,180.56,7.349e-05,2]
[398467345,1765691257180,240.75,7.668e-05,2]
[398467346,1765691257570,300.94,7.988e-05,2]
[398467347,1765691258023,361.13,8.307e-05,2]
[398467348,1765691258427,421.31,8.627e-05,2]
[398467349,1765691258849,481.5,8.946e-05,2]
[398467350,1765691259269,541.69,9.266e-05,2]
[398467351,1765691259676,601.88,9.585e-05,2]
[398467352,1765691282664,161.43,0.00012,2]
[398467353,1765691282937,161.43,0.000122,2]
[398467354,1765691283260,161.43,0.000124,2]
[398467355,1765691283536,161.43,0.000125,2]
[398467356,1765691283847,161.43,0.000127,2]
[398467357,1765691284122,161.43,0.000129,2]
[398467358,1765691284387,161.43,0.000131,2]
[398467359,1765691284678,161.43,0.000133,2]
[398467360,1765691287283,161.4,0.00012,2]
[398467364,1765691302777,187.81517547,9.277e-05,2]
[398467365,1765691330380,150.0,6.785e-05,2]
[398467366,1765691330772,153.86,7.108e-05,2]
[398467367,1765691331200,230.79,7.431e-05,2]
[398467368,1765691331592,307.72,7.754e-05,2]
[398467369,1765691332023,384.65,8.077e-05,2]
[398467370,1765691332419,461.58,8.4e-05,2]
[398467371,1765691332822,538.51,8.723e-05,2]
[398467372,1765691333235,615.44,9.046e-05,2]